bitfinex-derivatives/quotes_BTCF0:USTF0_20250514
["timestamp","ask_amount","ask_price","bid_price","bid_amount"]
[1747232719063,0.6922505,103230.0,103220.0,0.2830318]
[1747232719665,0.6922505,103230.0,103220.0,0.37990755]
[1747232720074,0.8022505,103230.0,103220.0,0.37990755]
[1747232720262,0.8032505,103230.0,103220.0,0.37990755]
[1747232720973,0.6049505,103230.0,103220.0,0.56571083]
[1747232721173,0.6049505,103230.0,103220.0,0.37990755]
[1747232721365,0.6944505,103230.0,103220.0,0.37990755]
[1747232721763,0.6049505,103230.0,103220.0,0.37990755]
[1747232721964,0.6049505,103230.0,103220.0,0.56571083]
[1747232722165,0.002,103240.0,103230.0,0.193713]
[1747232722361,0.002,103240.0,103230.0,0.70141956]
[1747232722573,0.002,103240.0,103230.0,2.01561628]
[1747232722773,0.002,103240.0,103230.0,2.11248265]
[1747232723275,0.07195307,103250.0,103240.0,0.1936942]
[1747232723471,0.07195307,103250.0,103240.0,0.47209748]
[1747232723673,0.07195307,103250.0,103240.0,1.17975348]
[1747232723868,0.07195307,103250.0,103240.0,1.27661047]
[1747232724071,0.098346,103260.0,103250.0,0.1936755]
[1747232724279,0.12111471,103270.0,103260.0,0.1936567]
[1747232724571,0.12111471,103270.0,103260.0,1.0280774]
[1747232724777,0.12111471,103270.0,103260.0,2.52615697]
[1747232724976,0.12111471,103270.0,103260.0,2.86631697]
[1747232725271,0.12111471,103270.0,103260.0,3.05212025]
[1747232725573,0.67555271,103270.0,103260.0,2.22279369]
[1747232725780,0.68555271,103270.0,103260.0,2.22279369]
[1747232726471,0.564438,103270.0,103260.0,1.88271369]
[1747232726769,1.081238,103270.0,103260.0,0.0463]
[1747232726975,0.1936567,103260.0,103250.0,0.3303761]
[1747232727181,0.7231567,103260.0,103250.0,1.8293761]
[1747232727472,0.7231567,103260.0,103250.0,1.92621433]
[1747232727674,0.6431567,103260.0,103250.0,0.42621433]
[1747232728264,0.6431567,103260.0,103250.0,0.18413823]
[1747232728593,0.9431567,103260.0,103250.0,0.2377755]
[1747232728763,0.1936755,103250.0,103240.0,0.3812451]
[1747232728968,0.6532755,103250.0,103240.0,0.4253451]
[1747232729168,0.6532755,103250.0,103240.0,0.52219271]
[1747232730265,0.6552755,103250.0,103240.0,0.52219271]
[1747232730467,0.6472755,103250.0,103240.0,0.52219271]
[1747232731669,0.004,103250.0,103240.0,0.76640203]
[1747232731868,0.5584755,103250.0,103240.0,0.76640203]
[1747232732066,0.5584755,103250.0,103240.0,0.80870203]
[1747232732675,0.5564755,103250.0,103240.0,0.80870203]
[1747232732876,0.5574755,103250.0,103240.0,0.80870203]
[1747232733466,0.5554755,103250.0,103240.0,0.80870203]
[1747232733674,0.3618,103250.0,103240.0,0.56449271]
[1747232733873,0.001,103250.0,103240.0,0.80870203]
[1747232734073,0.1946755,103250.0,103240.0,0.80870203]
[1747232734382,0.001,103250.0,103240.0,0.80870203]
[1747232735775,0.3608,103260.0,103240.0,0.61502373]
[1747232736089,0.67584765,103280.0,103270.0,0.193638]
[1747232736374,0.21823215,103280.0,103270.0,0.43784732]
[1747232736581,0.57903215,103280.0,103270.0,0.282138]
[1747232736775,0.66653215,103280.0,103270.0,0.37899499]
[1747232736980,0.67653215,103280.0,103270.0,0.236038]
[1747232737182,0.72193215,103280.0,103270.0,0.236038]
[1747232737872,0.72393215,103280.0,103270.0,0.236038]
[1747232739967,0.72593215,103280.0,103270.0,0.236038]
[1747232740173,0.52231295,103280.0,103270.0,0.52534732]
[1747232740377,0.02861295,103280.0,103270.0,0.62217617]
[1747232740575,0.02861295,103280.0,103270.0,0.66827617]
[1747232740880,0.00245291,103300.0,103290.0,0.1936005]
[1747232741184,0.64363461,103300.0,103290.0,0.52590982]
[1747232741481,0.00245291,103300.0,103290.0,0.62273867]
[1747232741671,0.00245291,103300.0,103290.0,1.02963867]
[1747232742075,0.00245291,103300.0,103290.0,1.12645067]
[1747232742379,0.31467771,103310.0,103300.0,0.1935817]
[1747232742682,0.31467771,103310.0,103300.0,0.48289102]
[1747232742883,0.31467771,103310.0,103300.0,0.52799102]
[1747232743088,0.31467771,103310.0,103300.0,2.12479175]
[1747232743474,0.31467771,103310.0,103300.0,1.88058243]
[1747232743675,0.193563,103310.0,103300.0,2.12479175]
[1747232743874,0.7883258,103320.0,103310.0,0.193563]
[1747232744070,0.7883258,103320.0,103310.0,0.52587232]
[1747232744278,0.6431594,103320.0,103310.0,0.52587232]
[1747232744482,0.1955443,103320.0,103310.0,0.62267305]
[1747232744779,0.1955443,103320.0,103310.0,0.66927305]
[1747232744985,0.003,103320.0,103310.0,0.66927305]
[1747232745279,0.003,103320.0,103310.0,1.03007305]
[1747232745469,0.72067829,103340.0,103330.0,0.1935255]
[1747232745676,0.94875549,103340.0,103330.0,0.43773482]
[1747232745979,0.90595549,103340.0,103330.0,0.52633482]
[1747232746174,0.90595549,103340.0,103330.0,0.62312618]
[1747232747084,0.76757829,103340.0,103330.0,0.62312618]
[1747232747274,0.77057829,103340.0,103330.0,0.62312618]
[1747232747474,0.77357829,103340.0,103330.0,0.62312618]
[1747232747881,0.72737829,103340.0,103330.0,0.62312618]
[1747232748182,0.72837829,103340.0,103330.0,0.62312618]
[1747232748781,0.67742571,103340.0,103330.0,0.37891686]
[1747232748982,0.67842571,103340.0,103330.0,0.66672618]
[1747232749388,0.557311,103340.0,103330.0,0.42251686]
[1747232749575,0.647411,103340.0,103330.0,0.47320068]
[1747232749869,0.657411,103340.0,103330.0,0.66672618]
[1747232750474,0.647411,103340.0,103330.0,0.66672618]
[1747232751176,0.1935255,103330.0,103320.0,0.2419171]
[1747232751378,0.6457255,103330.0,103320.0,0.53451182]
[1747232751681,0.6457255,103330.0,103320.0,2.21958445]
[1747232752283,0.6457255,103330.0,103320.0,2.55606445]
[1747232753374,0.6457255,103330.0,103320.0,1.92698973]
[1747232753577,0.6457255,103330.0,103320.0,2.50763905]
[1747232754481,0.6457255,103330.0,103320.0,2.26342973]
[1747232754681,0.6457255,103330.0,103320.0,2.50763905]
[1747232754979,0.6457255,103330.0,103320.0,2.26342973]
[1747232755183,0.6457255,103330.0,103310.0,0.00193583]
[1747232755184,0.1935443,103320.0,103310.0,0.00193583]
[1747232755390,0.9538443,103320.0,103310.0,0.04643583]
[1747232755686,0.9538443,103320.0,103310.0,1.98420815]
[1747232755887,0.9538443,103320.0,103310.0,2.08099951]
[1747232756086,0.6438443,103320.0,103310.0,2.12699951]
[1747232756392,0.6438443,103320.0,103310.0,1.88479019]
[1747232756576,0.6438443,103320.0,103310.0,2.12899951]
[1747232756775,0.6468443,103320.0,103310.0,1.88479019]
[1747232756973,0.6468443,103320.0,103310.0,1.69122719]
[1747232757183,0.6468443,103320.0,103310.0,1.88479019]
[1747232758182,0.6468443,103320.0,103310.0,2.12899951]
[1747232758383,0.6498443,103320.0,103310.0,2.12699951]
[1747232760888,0.6498443,103320.0,103310.0,1.64322719]
[1747232761193,0.1936005,103290.0,103280.0,0.00296]
[1747232761378,1.1552005,103290.0,103280.0,0.04766]
[1747232761577,1.1997005,103290.0,103280.0,0.29337056]
[1747232762079,1.1997005,103290.0,103280.0,0.33807056]
[1747232762483,1.2418005,103290.0,103280.0,0.38257056]
[1747232762884,1.0018005,103290.0,103280.0,0.38257056]
[1747232763082,1.0018005,103290.0,103280.0,0.14425136]
[1747232763289,1.0479005,103290.0,103280.0,0.33787056]
[1747232763790,1.0479005,103290.0,103280.0,0.33987056]
[1747232763986,0.0866,103290.0,103280.0,0.62877988]
[1747232764191,0.7167693,103300.0,103290.0,0.1936005]
[1747232764396,0.744631,103310.0,103300.0,0.1935817]
[1747232764690,0.9382035,103310.0,103300.0,0.52859102]
[1747232764895,0.9382035,103310.0,103300.0,0.6254105]
[1747232765188,0.6027635,103310.0,103300.0,0.6254105]
[1747232765388,0.6932635,103310.0,103300.0,0.38120118]
[1747232765782,0.8032635,103310.0,103300.0,0.14241948]
[1747232766103,0.8032635,103310.0,103300.0,0.33600118]
[1747232766291,0.8465635,103310.0,103300.0,0.33600118]
[1747232766687,0.7365635,103310.0,103300.0,0.38120118]
[1747232766881,0.7375635,103310.0,103300.0,0.38120118]
[1747232767187,0.6952635,103310.0,103300.0,0.6254105]
[1747232767894,0.6952635,103310.0,103300.0,0.38120118]
[1747232769294,0.6952635,103310.0,103300.0,0.6254105]
[1747232769295,0.4533,103310.0,103300.0,0.6254105]
[1747232769587,0.646863,103310.0,103300.0,0.6254105]
[1747232770187,0.3628,103310.0,103300.0,0.6254105]
[1747232770391,0.556363,103310.0,103300.0,0.6254105]
[1747232771090,0.3628,103310.0,103300.0,0.6254105]
[1747232771295,0.002,103310.0,103300.0,0.9862105]
[1747232771591,0.001,103310.0,103300.0,1.0830105]
[1747232771994,0.002,103320.0,103300.0,1.0830105]
[1747232771995,0.1955443,103320.0,103310.0,0.193563]
[1747232772186,0.1955443,103320.0,103310.0,0.90433232]
[1747232772586,0.5563443,103320.0,103310.0,2.25692373]
[1747232772789,0.6444443,103320.0,103310.0,2.25692373]
[1747232773193,0.6444443,103320.0,103310.0,1.92136373]
[1747232773487,0.6544443,103320.0,103310.0,1.87916373]
[1747232773793,0.6544443,103320.0,103310.0,1.83416373]
[1747232773983,0.6444443,103320.0,103310.0,1.83416373]
[1747232774188,0.6454443,103320.0,103310.0,1.88016373]
[1747232774696,0.6454443,103320.0,103310.0,0.38016373]
[1747232775501,0.6484443,103320.0,103310.0,0.14060073]
[1747232775702,0.6484443,103320.0,103290.0,0.73932]
[1747232775703,1.11402932,103320.0,103290.0,0.1935895]
[1747232775894,1.11402932,103320.0,103290.0,0.0441]
[1747232775895,0.9151817,103300.0,103290.0,0.0441]
[1747232776102,1.2951817,103300.0,103290.0,0.14089136]
[1747232776395,1.3836817,103300.0,103290.0,0.33449186]
[1747232776602,1.3836817,103300.0,103290.0,0.37819186]
[1747232776907,0.1936005,103290.0,103280.0,1.7933781]
[1747232777092,0.6412005,103290.0,103280.0,0.2406707]
[1747232777299,0.6412005,103290.0,103280.0,0.3374808]
[1747232777803,0.6412005,103290.0,103280.0,0.62539012]
[1747232777999,0.6412005,103290.0,103280.0,0.77276146]
[1747232778200,0.6412005,103290.0,103280.0,0.53055214]
[1747232778796,0.6511878,103300.0,103290.0,0.1936005]
[1747232779103,0.6511878,103300.0,103290.0,0.52470982]
[1747232779104,0.7679878,103300.0,103290.0,0.52470982]
[1747232779304,0.7679878,103300.0,103290.0,0.2805005]
[1747232779608,0.7679878,103300.0,103290.0,0.37731998]
[1747232779799,0.1936005,103290.0,103280.0,0.15433134]
[1747232780008,0.6433005,103290.0,103280.0,0.15233134]
[1747232780201,0.6892005,103290.0,103280.0,0.15233134]
[1747232780401,0.6892005,103290.0,103280.0,0.38915054]
[1747232780709,0.6892005,103290.0,103280.0,0.38715054]
[1747232781205,0.6433005,103290.0,103280.0,0.48597002]
[1747232781506,0.0461,103290.0,103280.0,0.77247934]
[1747232781703,0.6027915,103300.0,103290.0,0.1936005]
[1747232781892,0.6004945,103300.0,103290.0,0.52270982]
[1747232782300,0.3608,103300.0,103290.0,0.7603235]
[1747232782492,0.8377494,103310.0,103300.0,0.1935817]
[1747232782697,0.8377494,103310.0,103300.0,0.52609102]
[1747232782900,0.6950622,103310.0,103300.0,0.52609102]
[1747232783205,0.6950622,103310.0,103300.0,0.62289175]
[1747232783407,0.6950622,103310.0,103300.0,0.37868243]
[1747232783707,0.6960622,103310.0,103300.0,0.37868243]
[1747232784797,0.6970622,103310.0,103300.0,0.37868243]
[1747232786105,0.6970622,103310.0,103300.0,0.13940073]
[1747232786302,0.6970622,103310.0,103280.0,0.00296]
[1747232786303,0.1936005,103290.0,103280.0,0.00296]
[1747232786605,0.1936005,103290.0,103280.0,0.14236073]
[1747232786606,0.9352005,103290.0,103280.0,0.14236073]
[1747232786904,1.0649005,103290.0,103280.0,0.04556]
[1747232787292,1.0649005,103290.0,103280.0,0.2391792]
[1747232787797,1.0649005,103290.0,103280.0,0.2874792]
[1747232788203,1.0449005,103290.0,103280.0,0.2894792]
[1747232788398,1.0449005,103290.0,103280.0,0.38629868]
[1747232789001,1.0020005,103290.0,103280.0,0.38629868]
[1747232789197,0.6412005,103290.0,103280.0,0.630508]
[1747232789605,0.5544005,103290.0,103280.0,0.630508]
[1747232790307,0.5544005,103290.0,103280.0,0.38629868]
[1747232790606,0.6422005,103290.0,103280.0,0.38629868]
[1747232791303,0.6422005,103290.0,103280.0,0.10377948]
[1747232791510,0.7067005,103290.0,103280.0,0.00696]
[1747232791701,0.7067005,103290.0,103280.0,0.05286]
[1747232792204,0.95090982,103290.0,103280.0,0.00696]
[1747232792404,1.14090982,103290.0,103280.0,0.00696]
[1747232792704,0.8967005,103290.0,103280.0,0.00696]
[1747232793704,1.2307805,103290.0,103280.0,0.05286]
[1747232794500,1.2307805,103290.0,103280.0,0.00696]
[1747232794702,1.47498982,103290.0,103280.0,0.00696]
[1747232795409,1.63698982,103290.0,103280.0,0.00696]
[1747232796115,1.47498982,103290.0,103280.0,0.00696]
[1747232797508,1.2307805,103290.0,103280.0,0.00696]
[1747232797900,1.24036124,103290.0,103280.0,0.00696]
[1747232798804,1.73457056,103290.0,103280.0,1e-07]
[1747232799009,1.83139056,103290.0,103280.0,1e-07]
[1747232799216,2.32735056,103290.0,103280.0,1e-07]
[1747232800419,0.1936192,103280.0,103270.0,8e-08]
[1747232800711,1.24572852,103280.0,103270.0,8e-08]
[1747232800915,1.34255652,103280.0,103270.0,8e-08]
[1747232802202,1.7662272,103280.0,103270.0,8e-08]
[1747232803410,1.7682272,103280.0,103270.0,8e-08]
[1747232803624,1.7742272,103280.0,103270.0,0.00100008]
[1747232803815,1.7742272,103280.0,103270.0,0.001]
[1747232804018,1.7802272,103280.0,103270.0,0.002]
[1747232804207,1.92756852,103280.0,103270.0,0.002]
[1747232805107,0.1936755,103250.0,103240.0,1.7847121]
[1747232805312,0.9152755,103250.0,103240.0,1.7819895]
[1747232805507,0.9618755,103250.0,103240.0,1.87881835]
[1747232806014,0.1936942,103240.0,103230.0,0.00193733]
[1747232806308,0.7544942,103240.0,103230.0,0.09043733]
[1747232806499,0.8447942,103240.0,103230.0,1.63283733]
[1747232806703,0.3936942,103240.0,103230.0,2.16761664]
[1747232806905,0.1936942,103240.0,103230.0,2.26446914]
[1747232807113,0.5544942,103240.0,103230.0,2.26446914]
[1747232807313,0.3608,103240.0,103230.0,2.20644156]
[1747232807909,0.5544942,103240.0,103230.0,2.20644156]
[1747232808309,0.5574942,103240.0,103230.0,2.20644156]
[1747232808510,0.5614942,103240.0,103230.0,2.20744156]
[1747232809317,0.3678,103240.0,103230.0,2.20744156]
[1747232809614,0.5614942,103240.0,103230.0,2.20744156]
[1747232809818,0.007,103240.0,103230.0,2.55430956]
[1747232810116,0.007,103240.0,103230.0,2.7404913]
[1747232810707,0.007,103240.0,103230.0,3.1012913]
[1747232810907,0.007,103240.0,103230.0,2.91510956]
[1747232811218,0.007,103240.0,103230.0,3.1012913]
[1747232811409,0.3608,103250.0,103240.0,0.1936942]
[1747232811711,0.3608,103250.0,103240.0,0.46577594]
[1747232812018,0.6996814,103270.0,103260.0,0.1936567]
[1747232812517,0.6996814,103270.0,103260.0,0.2824567]
[1747232812813,0.88586314,103270.0,103260.0,0.0888]
[1747232813017,1.33696314,103270.0,103260.0,0.0888]
[1747232813316,1.73186314,103270.0,103260.0,0.0888]
[1747232813708,1.5456814,103270.0,103260.0,0.0888]
[1747232813908,1.73186314,103270.0,103260.0,0.0888]
[1747232814212,1.73186314,103270.0,103260.0,0.2824567]
[1747232814412,1.1667814,103270.0,103260.0,0.2824567]
[1747232814716,1.0280662,103270.0,103260.0,0.2824567]
[1747232814911,0.012,103270.0,103260.0,0.89975667]
[1747232815113,0.205638,103270.0,103260.0,0.89975667]
[1747232815511,0.012,103270.0,103260.0,0.89975667]
[1747232815711,0.012,103270.0,103260.0,1.08593841]
[1747232815911,0.012,103270.0,103260.0,2.12645841]
[1747232816413,0.006,103270.0,103260.0,2.12645841]
[1747232816614,0.009,103270.0,103260.0,2.12645841]
[1747232817113,0.005,103270.0,103260.0,2.12645841]
[1747232817318,0.195638,103270.0,103260.0,1.69127667]
[1747232817622,0.002,103270.0,103260.0,3.19127667]
[1747232817925,0.6532459,103280.0,103270.0,0.193638]
[1747232818118,0.6532459,103280.0,103270.0,0.51681974]
[1747232818518,0.6532459,103280.0,103270.0,0.61365797]
[1747232818819,0.002,103280.0,103270.0,0.97445797]
[1747232819014,0.004,103280.0,103270.0,0.61365797]
[1747232819819,0.55590543,103310.0,103300.0,0.1935817]
[1747232820019,0.74109263,103310.0,103300.0,0.1935817]
[1747232820217,0.70109263,103310.0,103300.0,0.3234817]
[1747232820411,0.70109263,103310.0,103300.0,1.92031055]
[1747232820610,0.97437437,103310.0,103300.0,1.72672885]
[1747232820818,1.23437437,103310.0,103300.0,1.587]
[1747232821017,1.23437437,103310.0,103300.0,0.087]
[1747232821216,1.24137437,103310.0,103300.0,0.088]
[1747232821420,1.24137437,103310.0,103300.0,0.0456]
[1747232821827,1.24864053,103310.0,103300.0,0.0446]
[1747232822010,1.25564053,103310.0,103300.0,0.0446]
[1747232822323,1.25564053,103310.0,103300.0,0.2381817]
[1747232822509,1.25564053,103310.0,103300.0,0.2828817]
[1747232822819,1.25564053,103310.0,103300.0,0.0893]
[1747232823021,1.25564053,103310.0,103300.0,0.2828817]
[1747232823324,1.06945879,103310.0,103300.0,0.2828817]
[1747232823527,0.79519263,103310.0,103300.0,0.56586417]
[1747232823720,0.46612043,103310.0,103300.0,0.61056417]
[1747232824024,0.65822988,103310.0,103300.0,0.61056417]
[1747232824214,0.3678,103310.0,103300.0,0.61056417]
[1747232824419,0.561363,103310.0,103300.0,0.61056417]
[1747232824817,0.560363,103310.0,103300.0,0.61056417]
[1747232825018,0.557363,103310.0,103300.0,0.61056417]
[1747232825213,0.837363,103310.0,103300.0,0.61056417]
[1747232825419,0.925363,103310.0,103300.0,0.42438243]
[1747232825722,1.16951305,103310.0,103300.0,0.14140073]
[1747232825913,1.16951305,103310.0,103300.0,0.0446]
[1747232826318,0.925363,103310.0,103300.0,0.0446]
[1747232826822,0.1935817,103300.0,103290.0,0.5710196]
[1747232827029,0.6964817,103300.0,103290.0,0.0467]
[1747232827217,0.9964817,103300.0,103290.0,0.0467]
[1747232828913,0.1936005,103290.0,103280.0,0.089]
[1747232829119,0.7959005,103290.0,103280.0,0.2815192]
[1747232829322,0.7959005,103290.0,103280.0,1.7815192]
[1747232830717,0.7959005,103290.0,103280.0,1.87833868]
[1747232831121,0.7979005,103290.0,103280.0,1.87833868]
[1747232831520,0.7979005,103290.0,103280.0,2.12248873]
[1747232831719,0.5564005,103290.0,103280.0,2.12248873]
[1747232832831,0.3628,103290.0,103280.0,2.12248873]
[1747232833021,0.5584005,103290.0,103280.0,2.12248873]
[1747232833330,0.5584005,103290.0,103280.0,1.87833868]
[1747232833533,0.6478005,103290.0,103280.0,1.87833868]
[1747232833832,0.9978005,103290.0,103280.0,0.0428]
[1747232834224,0.1936192,103280.0,103270.0,0.04883658]
[1747232834422,1.1284992,103280.0,103270.0,0.00193658]
[1747232834622,1.37264925,103280.0,103270.0,0.00193658]
[1747232834829,1.60264925,103280.0,103270.0,0.00193658]
[1747232835021,1.0270192,103280.0,103270.0,0.00193658]
[1747232835222,1.0184592,103280.0,103270.0,0.00193658]
[1747232835425,1.0284592,103280.0,103270.0,0.04583658]
[1747232835626,1.0284592,103280.0,103270.0,0.23947458]
[1747232836133,1.0184592,103280.0,103270.0,0.33630343]
[1747232837128,0.4934,103280.0,103270.0,0.33630343]
[1747232837327,0.6870192,103280.0,103270.0,0.62495348]
[1747232837531,0.6438192,103280.0,103270.0,0.62495348]
[1747232837931,0.3608,103280.0,103270.0,0.66925348]
[1747232838334,0.5544192,103280.0,103270.0,0.66925348]
[1747232838726,0.3608,103280.0,103270.0,0.66925348]
[1747232838926,0.5544192,103280.0,103270.0,0.66925348]
[1747232840440,0.5544192,103280.0,103270.0,2.16925348]
[1747232840739,0.2828192,103280.0,103270.0,2.16925348]
[1747232840938,1.0044192,103280.0,103270.0,2.16925348]
[1747232841443,0.6436192,103280.0,103270.0,2.16925348]
[1747232842331,0.5544192,103280.0,103270.0,2.16925348]
[1747232843535,0.5544192,103280.0,103270.0,1.92510343]
[1747232843742,0.5544192,103280.0,103270.0,2.16925348]
[1747232843940,0.6452192,103280.0,103270.0,2.16925348]
[1747232844138,0.5544192,103280.0,103270.0,2.16925348]
[1747232845732,0.5544192,103280.0,103270.0,1.92510343]
[1747232845937,0.5989192,103280.0,103270.0,2.16925348]
[1747232846129,0.6421192,103280.0,103270.0,2.16925348]
[1747232846334,0.3608,103280.0,103270.0,2.16925348]
[1747232847030,0.16024718,103300.0,103290.0,0.1936005]
[1747232847341,0.26612888,103300.0,103290.0,0.56550576]
[1747232847541,0.07254718,103300.0,103290.0,2.19450576]
[1747232847735,0.07254718,103300.0,103290.0,2.29133461]
[1747232848833,0.07254718,103300.0,103290.0,2.38814661]
[1747232850542,0.26612888,103300.0,103290.0,2.38814661]
[1747232850733,0.1935817,103300.0,103290.0,2.38814661]
[1747232851244,0.7878549,103310.0,103300.0,0.1935817]
[1747232851434,0.7878549,103310.0,103300.0,0.46743433]
[1747232851947,0.7878549,103310.0,103300.0,0.56424443]
[1747232852341,0.3608,103310.0,103300.0,0.56424443]
[1747232852845,0.556363,103310.0,103300.0,0.56424443]
[1747232853040,0.002,103310.0,103300.0,0.89420443]
[1747232853246,0.002,103310.0,103300.0,1.25500443]
[1747232853445,0.004,103310.0,103300.0,1.25500443]
[1747232854542,0.004,103310.0,103300.0,2.75500443]
[1747232854744,0.197563,103310.0,103300.0,2.75500443]
[1747232855343,0.197563,103310.0,103300.0,2.39420443]
[1747232855745,0.558363,103310.0,103300.0,2.39420443]
[1747232856441,0.558363,103310.0,103300.0,2.2082518]
[1747232856743,0.646563,103310.0,103300.0,2.39420443]
[1747232856946,0.646563,103310.0,103300.0,2.2082518]
[1747232857135,0.646563,103310.0,103300.0,2.39420443]
[1747232857542,0.666563,103310.0,103300.0,1.8782918]
[1747232858441,0.666563,103310.0,103300.0,1.7361817]
[1747232858647,0.666563,103310.0,103300.0,1.83298243]
[1747232859547,0.646563,103310.0,103300.0,2.01893506]
[1747232859740,0.646563,103310.0,103300.0,2.06183506]
[1747232860742,0.646563,103310.0,103300.0,1.87588243]
[1747232860943,0.646563,103310.0,103300.0,2.06183506]
[1747232861447,0.646563,103310.0,103300.0,1.87588243]
[1747232861851,0.646563,103310.0,103300.0,1.63940073]
[1747232862040,0.966563,103310.0,103300.0,1.59680073]
[1747232862237,1.15251563,103310.0,103300.0,0.09680073]
[1747232862438,1.48163563,103310.0,103300.0,0.09680073]
[1747232862642,0.1935817,103300.0,103290.0,0.380777]
[1747232862848,0.8697817,103300.0,103290.0,1.880777]
[1747232863037,0.8697817,103300.0,103290.0,1.97757773]
[1747232863237,0.8697817,103300.0,103290.0,1.92917813]
[1747232863441,0.8697817,103300.0,103290.0,0.42917813]
[1747232866054,0.8717817,103300.0,103290.0,0.42917813]
[1747232866250,0.8737817,103300.0,103290.0,0.42917813]
[1747232866746,0.8737817,103300.0,103290.0,0.33878113]
[1747232866938,0.8737817,103300.0,103290.0,0.29040123]
[1747232867145,0.1936005,103290.0,103280.0,0.34712997]
[1747232867447,0.6744005,103290.0,103280.0,0.3325293]
[1747232867656,0.6744005,103290.0,103280.0,1.8325293]
[1747232870649,1.2328405,103290.0,103280.0,0.0421]
[1747232870954,0.1936192,103280.0,103270.0,0.23747048]
[1747232871251,0.8394192,103280.0,103270.0,1.83428996]
[1747232871448,0.8394192,103280.0,103270.0,0.14065606]
[1747232871645,0.8394192,103280.0,103270.0,0.23747458]
[1747232871847,1.0094192,103280.0,103270.0,0.23747458]
[1747232872455,1.0124192,103280.0,103270.0,0.23747458]
[1747232873349,1.0124192,103280.0,103270.0,0.42342721]
[1747232873556,0.7824192,103280.0,103270.0,0.23747458]
[1747232873751,0.7824192,103280.0,103270.0,0.42342721]
[1747232873950,0.7854192,103280.0,103270.0,0.42342721]
[1747232874153,0.7854192,103280.0,103270.0,0.23747458]
[1747232874344,0.7854192,103280.0,103270.0,0.42342721]
[1747232874553,0.5918,103280.0,103270.0,0.42342721]
[1747232874749,0.6954192,103280.0,103270.0,0.56505606]
[1747232875764,0.6944192,103280.0,103270.0,0.56505606]
[1747232876659,0.6914192,103280.0,103270.0,0.56505606]
[1747232876851,0.6934192,103280.0,103270.0,0.56505606]
[1747232877047,0.3648,103280.0,103270.0,0.56505606]
[1747232877249,0.004,103280.0,103270.0,0.56505606]
[1747232878259,0.79012,103290.0,103280.0,0.1936192]
[1747232878464,0.79012,103290.0,103280.0,0.3237192]
[1747232878679,0.79012,103290.0,103280.0,0.50967183]
[1747232878962,0.79012,103290.0,103280.0,0.60650068]
[1747232879971,0.79212,103290.0,103280.0,0.60650068]
[1747232880465,0.79412,103290.0,103280.0,0.60650068]
[1747232881564,0.5584147,103290.0,103280.0,0.60650068]
[1747232881868,0.5584147,103290.0,103280.0,0.42054805]
[1747232882068,0.6471147,103290.0,103280.0,0.60650068]
[1747232882573,0.004,103290.0,103280.0,0.60650068]
[1747232882954,0.1976005,103290.0,103280.0,0.60650068]
[1747232883166,0.7684005,103290.0,103280.0,0.42054805]
[1747232883468,0.8598005,103290.0,103280.0,0.60650068]
[1747232883861,0.8598005,103290.0,103280.0,2.10650068]
[1747232884059,0.8578005,103290.0,103280.0,2.10650068]
[1747232884372,0.8558005,103290.0,103280.0,2.10650068]
[1747232884669,0.6478005,103290.0,103280.0,2.10650068]
[1747232885369,0.6498005,103290.0,103280.0,2.10650068]
[1747232886067,0.6498005,103290.0,103280.0,1.72692885]
[1747232886374,0.6498005,103290.0,103280.0,1.92054805]
[1747232886673,0.6498005,103290.0,103280.0,1.87714805]
[1747232886969,0.6698005,103290.0,103280.0,2.06310068]
[1747232887669,0.6498005,103290.0,103280.0,2.06310068]
[1747232887871,0.6498005,103290.0,103280.0,1.87714805]
[1747232888057,0.6498005,103290.0,103280.0,2.06310068]
[1747232888568,0.5584005,103290.0,103280.0,2.06310068]
[1747232888871,0.004,103290.0,103280.0,2.24905331]
[1747232889063,0.1976005,103290.0,103280.0,2.06310068]
[1747232889472,0.004,103290.0,103280.0,2.24905331]
[1747232890570,0.002,103290.0,103280.0,2.24905331]
[1747232891270,0.72372238,103300.0,103290.0,0.1936005]
[1747232891472,0.72372238,103300.0,103290.0,0.70030576]
[1747232891674,0.72372238,103300.0,103290.0,0.51435313]
[1747232891971,0.07254718,103300.0,103290.0,1.15634635]
[1747232892176,0.07254718,103300.0,103290.0,1.52825161]
[1747232892372,0.07254718,103300.0,103290.0,3.02825161]
[1747232892572,0.2903547,103310.0,103300.0,0.1935817]
[1747232892765,0.6027623,103310.0,103300.0,0.47183433]
[1747232892962,0.25872408,103320.0,103300.0,0.47183433]
[1747232892963,0.45228378,103320.0,103310.0,0.193563]
[1747232893275,0.81308378,103320.0,103310.0,0.51571563]
[1747232893679,0.72568378,103320.0,103310.0,0.61251636]
[1747232894271,0.27409148,103320.0,103310.0,0.61251636]
[1747232894475,0.63489148,103320.0,103310.0,0.61251636]
[1747232894775,0.67489148,103320.0,103310.0,0.23300073]
[1747232894968,1.02989148,103320.0,103310.0,0.14280073]
[1747232895169,1.02989148,103320.0,103300.0,1.5468]
[1747232895170,0.193563,103310.0,103300.0,1.5468]
[1747232895478,1.056363,103310.0,103300.0,1.547]
[1747232895982,1.056363,103310.0,103280.0,0.71155453]
[1747232895983,0.1936005,103290.0,103280.0,0.290418]
[1747232896275,0.9152005,103290.0,103280.0,0.0468]
[1747232896479,1.0146005,103290.0,103280.0,0.33721993]
[1747232896679,1.0046005,103290.0,103280.0,0.52317256]
[1747232896973,1.0046005,103290.0,103280.0,0.33721993]
[1747232897179,0.1936192,103280.0,103270.0,0.04613658]
[1747232897386,1.3543192,103280.0,103270.0,0.24167458]
[1747232897569,1.3543192,103280.0,103270.0,0.33849406]
[1747232897765,1.86615183,103280.0,103270.0,0.00193658]
[1747232898074,1.7770272,103280.0,103270.0,0.00193658]
[1747232898685,1.7770272,103280.0,103270.0,0.19875211]
[1747232898980,1.7912926,103280.0,103270.0,0.19875211]
[1747232899173,1.97724523,103280.0,103270.0,0.19875211]
[1747232899373,1.97724523,103280.0,103270.0,0.20175211]
[1747232899580,1.7912926,103280.0,103270.0,0.20175211]
[1747232899979,1.6944646,103280.0,103270.0,0.19875211]
[1747232900176,1.6994646,103280.0,103270.0,0.19875211]
[1747232900572,1.6992246,103280.0,103270.0,0.39239011]
[1747232900868,1.7042246,103280.0,103270.0,0.39239011]
[1747232901070,1.7042246,103280.0,103270.0,0.19875211]
[1747232901371,1.7041446,103280.0,103270.0,0.57834274]
[1747232901574,1.7041446,103280.0,103270.0,0.67004274]
[1747232901775,1.7041446,103280.0,103270.0,0.48409011]
[1747232902075,1.7041446,103280.0,103270.0,0.43899011]
[1747232902477,1.7041446,103280.0,103270.0,0.24535211]
[1747232902670,1.7021446,103280.0,103270.0,0.19875211]
[1747232902870,1.88809723,103280.0,103270.0,0.19875211]
[1747232903682,1.7021446,103280.0,103270.0,0.39239011]
[1747232903883,1.0103192,103280.0,103270.0,0.38152721]
[1747232904075,1.0103192,103280.0,103270.0,0.24017458]